[Event "Late-Titled-Tuesday-Blitz-September-05-2023"]
[Site "Chess.com"]
[Date "2023.09.05"]
[Round "7"]
[White "Sinquefield"]
[Black "NotFischer"]
[Result "1-0"]
[WhiteElo "2468"]
[BlackElo "2278"]
[TimeControl "180+1"]
[EndTime "15:18:52 PDT"]
[Termination "Sinquefield won by resignation"]

1. d4 {[%clk 0:02:54.1]} 1... Nf6 {[%clk 0:03:00]} 2. Bg5 {[%clk 0:02:54.7]}
2... Ne4 {[%clk 0:02:58.8]} 3. Bh4 {[%clk 0:02:54.7]} 3... d5 {[%clk 0:02:58.1]}
4. f3 {[%clk 0:02:54.8]} 4... Nd6 {[%clk 0:02:57.3]} 5. Nc3 {[%clk 0:02:55.1]}
5... c6 {[%clk 0:02:50.7]} 6. e4 {[%clk 0:02:55]} 6... dxe4 {[%clk 0:02:43.4]}
7. fxe4 {[%clk 0:02:55.9]} 7... g6 {[%clk 0:02:41.3]} 8. Nf3 {[%clk 0:02:53.5]}
8... Bg7 {[%clk 0:02:40.4]} 9. Bd3 {[%clk 0:02:52.1]} 9... O-O {[%clk
0:02:39.5]} 10. O-O {[%clk 0:02:50.7]} 10... Bg4 {[%clk 0:02:30.6]} 11. Bf2
{[%clk 0:02:44.5]} 11... e5 {[%clk 0:02:29.5]} 12. d5 {[%clk 0:02:40.1]} 12...
cxd5 {[%clk 0:02:23.1]} 13. Nxd5 {[%clk 0:02:41]} 13... Nc6 {[%clk 0:02:19.2]}
14. c3 {[%clk 0:02:29.9]} 14... Kh8 {[%clk 0:02:14.2]} 15. h3 {[%clk 0:02:25.8]}
15... Bxf3 {[%clk 0:02:14.1]} 16. Qxf3 {[%clk 0:02:26.4]} 16... f5 {[%clk
0:02:14.7]} 17. Qe2 {[%clk 0:02:22.3]} 17... Qd7 {[%clk 0:01:47.1]} 18. Rad1
{[%clk 0:02:17.7]} 18... Rad8 {[%clk 0:01:43.3]} 19. Bb1 {[%clk 0:02:11.2]}
19... fxe4 {[%clk 0:01:34.8]} 20. Bxe4 {[%clk 0:02:08.9]} 20... Nxe4 {[%clk
0:01:35]} 21. Qxe4 {[%clk 0:02:09.8]} 21... Qf5 {[%clk 0:01:35.2]} 22. Qe2
{[%clk 0:02:06]} 22... Qe6 {[%clk 0:01:07.8]} 23. c4 {[%clk 0:01:51]} 23... e4
{[%clk 0:01:07.2]} 24. b3 {[%clk 0:01:48.2]} 24... Rfe8 {[%clk 0:01:00.7]} 25.
Nc7 {[%clk 0:01:41]} 25... Qe7 {[%clk 0:00:53.4]} 26. Nxe8 {[%clk 0:01:40.2]}
26... Rxe8 {[%clk 0:00:53.5]} 27. Rfe1 {[%clk 0:01:34.2]} 27... Bc3 {[%clk
0:00:42.7]} 28. Rf1 {[%clk 0:01:25.6]} 28... Qe5 {[%clk 0:00:37.9]} 29. Rd5
{[%clk 0:01:20.3]} 29... Qe6 {[%clk 0:00:37.4]} 30. Rfd1 {[%clk 0:01:11.9]}
30... e3 {[%clk 0:00:36.4]} 31. Be1 {[%clk 0:01:08.9]} 31... Be5 {[%clk
0:00:31.4]} 32. R1d3 {[%clk 0:00:53.5]} 32... Bf4 {[%clk 0:00:30]} 33. Bc3+
{[%clk 0:00:49]} 33... Kg8 {[%clk 0:00:29.9]} 34. Qf3 {[%clk 0:00:26.4]} 34...
Bh6 {[%clk 0:00:13.2]} 35. Rd6 {[%clk 0:00:18.8]} 35... Qe7 {[%clk 0:00:13.2]}
36. Qd5+ {[%clk 0:00:17.4]} 36... Qf7 {[%clk 0:00:09.7]} 37. Qxf7+ {[%clk
0:00:13.6]} 37... Kxf7 {[%clk 0:00:10.1]} 38. Rf6+ {[%clk 0:00:05.6]} 38... Kg8
{[%clk 0:00:10.1]} 39. Rf1 {[%clk 0:00:06]} 39... Ne5 {[%clk 0:00:07.6]} 40.
Bxe5 {[%clk 0:00:04.5]} 40... Rxe5 {[%clk 0:00:07.4]} 41. Re1 {[%clk 0:00:05.1]}
41... Bf4 {[%clk 0:00:06.8]} 42. Re2 {[%clk 0:00:03.9]} 42... h5 {[%clk
0:00:06.7]} 43. g3 {[%clk 0:00:04.3]} 43... Bh6 {[%clk 0:00:03.2]} 44. Kg2
{[%clk 0:00:04.7]} 44... Kf7 {[%clk 0:00:03.5]} 45. Kf3 {[%clk 0:00:02.9]} 45...
Kf6 {[%clk 0:00:03.2]} 46. Rdxe3 {[%clk 0:00:02.7]} 46... Rxe3+ {[%clk
0:00:02.7]} 47. Rxe3 {[%clk 0:00:03.6]} 47... Bxe3 {[%clk 0:00:03.1]} 48. Kxe3
{[%clk 0:00:04.5]} 48... g5 {[%clk 0:00:03.8]} 49. Ke4 {[%clk 0:00:04.2]} 49...
Ke6 {[%clk 0:00:03.4]} 50. g4 {[%clk 0:00:04.3]} 50... h4 {[%clk 0:00:03.3]} 51.
b4 {[%clk 0:00:04.6]} 51... b6 {[%clk 0:00:03.6]} 52. a4 {[%clk 0:00:03.8]}
52... a6 {[%clk 0:00:04.1]} 53. c5 {[%clk 0:00:03.1]} 53... bxc5 {[%clk
0:00:04.2]} 54. bxc5 {[%clk 0:00:04]} 54... a5 {[%clk 0:00:04.3]} 55. Kd4 {[%clk
0:00:04.3]} 55... Kd7 {[%clk 0:00:03.2]} 56. Kd5 {[%clk 0:00:05.2]} 56... Kc7
{[%clk 0:00:03.6]} 57. c6 {[%clk 0:00:04.6]} 57... Kd8 {[%clk 0:00:03.3]} 58.
Kc5 {[%clk 0:00:04.9]} 58... Kc7 {[%clk 0:00:03.8]} 59. Kb5 {[%clk 0:00:05.4]}
59... Kc8 {[%clk 0:00:04.1]} 60. Kxa5 {[%clk 0:00:06]} 60... Kc7 {[%clk
0:00:04.7]} 61. Kb5 {[%clk 0:00:06.9]} 61... Kd6 {[%clk 0:00:05.3]} 62. a5
{[%clk 0:00:07.8]} 62... Kc7 {[%clk 0:00:05.5]} 63. a6 {[%clk 0:00:08.7]} 1-0

[Event "Late-Titled-Tuesday-Blitz-September-05-2023"]
[Site "Chess.com"]
[Date "2023.09.05"]
[Round "7"]
[White "Godzillator"]
[Black "Chessbard1972"]
[Result "1-0"]
[WhiteElo "2340"]
[BlackElo "2478"]
[TimeControl "180+1"]
[EndTime "15:18:52 PDT"]
[Termination "Godzillator won on time"]

1. Nf3 {[%clk 0:02:25]} 1... Nf6 {[%clk 0:02:55]} 2. d4 {[%clk 0:02:24.2]} 2...
g6 {[%clk 0:02:53]} 3. c3 {[%clk 0:02:23.9]} 3... Bg7 {[%clk 0:02:51.7]} 4. Bf4
{[%clk 0:02:23.7]} 4... d5 {[%clk 0:02:51.3]} 5. e3 {[%clk 0:02:22.8]} 5... O-O
{[%clk 0:02:48.3]} 6. h4 {[%clk 0:02:22]} 6... h5 {[%clk 0:02:47.5]} 7. Qb3
{[%clk 0:02:19.8]} 7... a5 {[%clk 0:02:41.8]} 8. a3 {[%clk 0:02:18.3]} 8... a4
{[%clk 0:02:41.3]} 9. Qc2 {[%clk 0:02:15]} 9... Bf5 {[%clk 0:02:39.6]} 10. Bd3
{[%clk 0:02:14.9]} 10... Bxd3 {[%clk 0:02:39.4]} 11. Qxd3 {[%clk 0:02:15.8]}
11... c5 {[%clk 0:02:35.8]} 12. Nbd2 {[%clk 0:02:12.5]} 12... Nbd7 {[%clk
0:02:32]} 13. Ne5 {[%clk 0:02:12]} 13... cxd4 {[%clk 0:02:30.3]} 14. cxd4 {[%clk
0:02:08.8]} 14... Qb6 {[%clk 0:02:27.3]} 15. Rb1 {[%clk 0:02:00.5]} 15... Rac8
{[%clk 0:02:23.8]} 16. O-O {[%clk 0:01:59.9]} 16... e6 {[%clk 0:02:21.5]} 17. b4
{[%clk 0:01:54.2]} 17... Nxe5 {[%clk 0:01:53.2]} 18. Bxe5 {[%clk 0:01:53.6]}
18... Ng4 {[%clk 0:01:51.6]} 19. Bxg7 {[%clk 0:01:52.1]} 19... Kxg7 {[%clk
0:01:51.4]} 20. Rbc1 {[%clk 0:01:51.1]} 20... Rc6 {[%clk 0:01:47.3]} 21. Nf3
{[%clk 0:01:40.9]} 21... Rfc8 {[%clk 0:01:40.7]} 22. Rc5 {[%clk 0:01:40.8]}
22... Qd8 {[%clk 0:01:38.2]} 23. Rfc1 {[%clk 0:01:38.7]} 23... Rxc5 {[%clk
0:01:36.5]} 24. Rxc5 {[%clk 0:01:38.2]} 24... b6 {[%clk 0:01:36]} 25. Rc2 {[%clk
0:01:33.2]} 25... Rc7 {[%clk 0:01:34.1]} 26. g3 {[%clk 0:01:23.2]} 26... Qc8
{[%clk 0:01:33]} 27. Rxc7 {[%clk 0:01:23.1]} 27... Qxc7 {[%clk 0:01:33]} 28. Qd1
{[%clk 0:01:04.4]} 28... b5 {[%clk 0:01:30.6]} 29. Qd2 {[%clk 0:00:52.1]} 29...
Qc4 {[%clk 0:01:28.2]} 30. Ne1 {[%clk 0:00:49.6]} 30... Qb3 {[%clk 0:01:25.2]}
31. Qc1 {[%clk 0:00:43.9]} 31... Qa2 {[%clk 0:01:18.6]} 32. Nd3 {[%clk
0:00:42.8]} 32... Qc4 {[%clk 0:01:14]} 33. Qxc4 {[%clk 0:00:40.1]} 33... dxc4
{[%clk 0:01:13.5]} 34. Nc5 {[%clk 0:00:31.9]} 34... e5 {[%clk 0:01:07.3]} 35.
Kf1 {[%clk 0:00:31.2]} 35... exd4 {[%clk 0:01:04.8]} 36. exd4 {[%clk 0:00:31.3]}
36... Kf6 {[%clk 0:01:04.1]} 37. Ke2 {[%clk 0:00:31.2]} 37... Ke7 {[%clk
0:01:00.8]} 38. f3 {[%clk 0:00:30.9]} 38... Nf6 {[%clk 0:00:58]} 39. Ne4 {[%clk
0:00:25.1]} 39... Nd5 {[%clk 0:00:54.5]} 40. Kd2 {[%clk 0:00:24.2]} 40... f6
{[%clk 0:00:48.9]} 41. g4 {[%clk 0:00:19.4]} 41... Ke6 {[%clk 0:00:43.1]} 42.
gxh5 {[%clk 0:00:19.1]} 42... gxh5 {[%clk 0:00:42.7]} 43. Ng3 {[%clk 0:00:19.5]}
43... Nf4 {[%clk 0:00:41.8]} 44. Ke3 {[%clk 0:00:18.4]} 44... Ng2+ {[%clk
0:00:41.5]} 45. Ke4 {[%clk 0:00:17.2]} 45... Nxh4 {[%clk 0:00:38.5]} 46. Nxh5
{[%clk 0:00:16.1]} 46... f5+ {[%clk 0:00:36.6]} 47. Ke3 {[%clk 0:00:15.5]} 47...
Ng6 {[%clk 0:00:28.3]} 48. Ng7+ {[%clk 0:00:13.2]} 48... Kf6 {[%clk 0:00:23.3]}
49. Ne8+ {[%clk 0:00:13.3]} 49... Ke7 {[%clk 0:00:15.8]} 50. Nc7 {[%clk
0:00:13.3]} 50... Kd6 {[%clk 0:00:08.2]} 51. Nxb5+ {[%clk 0:00:13.3]} 51... Kd5
{[%clk 0:00:08]} 52. Nc3+ {[%clk 0:00:13.4]} 52... Kd6 {[%clk 0:00:07.4]} 53.
Nxa4 {[%clk 0:00:12.8]} 53... Ne7 {[%clk 0:00:06.6]} 54. Nc3 {[%clk 0:00:12.9]}
54... Nc6 {[%clk 0:00:05.9]} 55. b5 {[%clk 0:00:09.9]} 55... Na5 {[%clk
0:00:05.7]} 56. a4 {[%clk 0:00:09.9]} 56... Nb3 {[%clk 0:00:05.7]} 57. a5 {[%clk
0:00:08.2]} 57... Nxa5 {[%clk 0:00:05.1]} 58. d5 {[%clk 0:00:08.7]} 58... Nb3
{[%clk 0:00:04.7]} 59. Kf4 {[%clk 0:00:07.7]} 59... Nd4 {[%clk 0:00:02.4]} 60.
b6 {[%clk 0:00:06.9]} 1-0

[Event "Late-Titled-Tuesday-Blitz-September-05-2023"]
[Site "Chess.com"]
[Date "2023.09.05"]
[Round "7"]
[White "chessS1r"]
[Black "newyorkmouse"]
[Result "0-1"]
[WhiteElo "2573"]
[BlackElo "2462"]
[TimeControl "180+1"]
[EndTime "15:19:12 PDT"]
[Termination "newyorkmouse won by checkmate"]

1. d4 {[%clk 0:03:00.9]} 1... c5 {[%clk 0:02:56.7]} 2. d5 {[%clk 0:03:01]} 2...
Nf6 {[%clk 0:02:56.9]} 3. Nc3 {[%clk 0:03:01.5]} 3... d6 {[%clk 0:02:56]} 4. e4
{[%clk 0:03:02.2]} 4... g6 {[%clk 0:02:56.6]} 5. Bb5+ {[%clk 0:03:02.6]} 5...
Nfd7 {[%clk 0:02:56.8]} 6. a4 {[%clk 0:03:03.3]} 6... Bg7 {[%clk 0:02:57]} 7.
Nf3 {[%clk 0:03:02.1]} 7... O-O {[%clk 0:02:57]} 8. O-O {[%clk 0:03:02.7]} 8...
Nf6 {[%clk 0:02:56.1]} 9. Re1 {[%clk 0:02:53.7]} 9... Bg4 {[%clk 0:02:55.8]} 10.
h3 {[%clk 0:02:54.1]} 10... Bxf3 {[%clk 0:02:55.1]} 11. Qxf3 {[%clk 0:02:55]}
11... Nbd7 {[%clk 0:02:55.7]} 12. Bf4 {[%clk 0:02:53.2]} 12... a6 {[%clk
0:02:53.5]} 13. Bf1 {[%clk 0:02:52.6]} 13... Rb8 {[%clk 0:02:53.5]} 14. a5
{[%clk 0:02:32.7]} 14... Ne8 {[%clk 0:02:17.7]} 15. Qe3 {[%clk 0:02:12.7]} 15...
b5 {[%clk 0:01:26.9]} 16. axb6 {[%clk 0:02:05.9]} 16... Rxb6 {[%clk 0:01:25.9]}
17. b3 {[%clk 0:02:05.1]} 17... Qc8 {[%clk 0:01:08.5]} 18. Bh6 {[%clk
0:02:03.7]} 18... Bd4 {[%clk 0:01:06.2]} 19. Qd2 {[%clk 0:01:57.6]} 19... Ng7
{[%clk 0:01:03.2]} 20. Ra4 {[%clk 0:01:52.5]} 20... Bf6 {[%clk 0:00:43.4]} 21.
Rea1 {[%clk 0:01:35.7]} 21... Nb8 {[%clk 0:00:36.5]} 22. Bg5 {[%clk 0:01:29.9]}
22... Ne8 {[%clk 0:00:25.4]} 23. Bxf6 {[%clk 0:01:25.5]} 23... Nxf6 {[%clk
0:00:26.3]} 24. f4 {[%clk 0:01:26]} 24... Rb4 {[%clk 0:00:23.5]} 25. e5 {[%clk
0:01:18.6]} 25... dxe5 {[%clk 0:00:23.6]} 26. fxe5 {[%clk 0:01:18.1]} 26... Nh5
{[%clk 0:00:23.6]} 27. Ne4 {[%clk 0:01:07.5]} 27... Qf5 {[%clk 0:00:19.3]} 28.
Nxc5 {[%clk 0:00:46.5]} 28... Rxa4 {[%clk 0:00:18.1]} 29. Rxa4 {[%clk
0:00:46.4]} 29... Qxe5 {[%clk 0:00:18.3]} 30. Qd4 {[%clk 0:00:33.9]} 30... Qd6
{[%clk 0:00:16.8]} 31. Ne4 {[%clk 0:00:34]} 31... Qd7 {[%clk 0:00:15.9]} 32. c4
{[%clk 0:00:20.1]} 32... Nc6 {[%clk 0:00:11.9]} 33. Qc3 {[%clk 0:00:19.8]} 33...
Nd8 {[%clk 0:00:11.3]} 34. Rxa6 {[%clk 0:00:18.2]} 34... f5 {[%clk 0:00:11.2]}
35. Nc5 {[%clk 0:00:16.7]} 35... Qc8 {[%clk 0:00:09.8]} 36. Ne6 {[%clk 0:00:16]}
36... Qxa6 {[%clk 0:00:08.6]} 37. Nxf8 {[%clk 0:00:16]} 37... Kxf8 {[%clk
0:00:08.3]} 38. Qh8+ {[%clk 0:00:16.7]} 38... Kf7 {[%clk 0:00:08.8]} 39. Qxh7+
{[%clk 0:00:17.3]} 39... Ng7 {[%clk 0:00:08.8]} 40. Qh4 {[%clk 0:00:14.5]} 40...
Qb6+ {[%clk 0:00:08]} 41. Qf2 {[%clk 0:00:14.5]} 41... Qxb3 {[%clk 0:00:08.6]}
42. Qd4 {[%clk 0:00:13.5]} 42... Nb7 {[%clk 0:00:08.6]} 43. c5 {[%clk
0:00:13.7]} 43... Qa3 {[%clk 0:00:06.1]} 44. c6 {[%clk 0:00:13.5]} 44... Nd6
{[%clk 0:00:06.3]} 45. Qe5 {[%clk 0:00:08.7]} 45... Qc5+ {[%clk 0:00:05.5]} 46.
Kh2 {[%clk 0:00:09.1]} 46... Kf8 {[%clk 0:00:03.7]} 47. Be2 {[%clk 0:00:08.5]}
47... Kf7 {[%clk 0:00:03.9]} 48. Bf3 {[%clk 0:00:08.8]} 48... Nge8 {[%clk
0:00:03.9]} 49. h4 {[%clk 0:00:08.9]} 49... Nf6 {[%clk 0:00:04.1]} 50. Qe6+
{[%clk 0:00:09]} 50... Kf8 {[%clk 0:00:04.6]} 51. h5 {[%clk 0:00:08.4]} 51...
Nxh5 {[%clk 0:00:03.8]} 52. Bxh5 {[%clk 0:00:08.7]} 52... gxh5 {[%clk
0:00:04.3]} 53. Qh6+ {[%clk 0:00:09.3]} 53... Ke8 {[%clk 0:00:04.3]} 54. Qxh5+
{[%clk 0:00:09.6]} 54... Kd8 {[%clk 0:00:04.2]} 55. Qh8+ {[%clk 0:00:09.8]}
55... Kc7 {[%clk 0:00:04.8]} 56. Qf8 {[%clk 0:00:10.4]} 56... Qxd5 {[%clk
0:00:05]} 57. Qxe7+ {[%clk 0:00:11.1]} 57... Kxc6 {[%clk 0:00:05.4]} 58. Qe3
{[%clk 0:00:11.8]} 58... Kd7 {[%clk 0:00:05.1]} 59. Qc3 {[%clk 0:00:11]} 59...
Ke6 {[%clk 0:00:05.3]} 60. Kh3 {[%clk 0:00:07.9]} 60... Qe5 {[%clk 0:00:05.8]}
61. Qb3+ {[%clk 0:00:07.5]} 61... Kf6 {[%clk 0:00:06.1]} 62. Qg8 {[%clk
0:00:06.9]} 62... Qe3+ {[%clk 0:00:05.6]} 63. g3 {[%clk 0:00:07]} 63... Qh6+
{[%clk 0:00:05.6]} 64. Kg2 {[%clk 0:00:06.9]} 64... Ne4 {[%clk 0:00:03.9]} 65.
Qc4 {[%clk 0:00:06.8]} 65... Qd2+ {[%clk 0:00:03]} 66. Kh3 {[%clk 0:00:06.9]}
66... Nf2+ {[%clk 0:00:03.5]} 67. Kh4 {[%clk 0:00:06.8]} 67... Qg5# {[%clk
0:00:03.5]} 0-1

[Event "Late-Titled-Tuesday-Blitz-September-05-2023"]
[Site "Chess.com"]
[Date "2023.09.05"]
[Round "7"]
[White "Russian_berezka"]
[Black "ckgchess"]
[Result "1-0"]
[WhiteElo "2606"]
[BlackElo "2829"]
[TimeControl "180+1"]
[EndTime "15:19:18 PDT"]
[Termination "Russian_berezka won by checkmate"]

1. d4 {[%clk 0:03:00.9]} 1... Nf6 {[%clk 0:03:00.3]} 2. Bf4 {[%clk 0:03:00.4]}
2... d5 {[%clk 0:03:00.6]} 3. e3 {[%clk 0:03:00.6]} 3... Bf5 {[%clk 0:02:59.2]}
4. c4 {[%clk 0:03:00.5]} 4... e6 {[%clk 0:02:59.3]} 5. Nc3 {[%clk 0:03:00.6]}
5... c6 {[%clk 0:02:44.3]} 6. Qb3 {[%clk 0:02:59]} 6... Qc8 {[%clk 0:02:28.7]}
7. h3 {[%clk 0:02:58.1]} 7... h6 {[%clk 0:02:28]} 8. Nf3 {[%clk 0:02:58.6]} 8...
Nbd7 {[%clk 0:02:27.6]} 9. Be2 {[%clk 0:02:59.3]} 9... Be7 {[%clk 0:02:26.9]}
10. O-O {[%clk 0:02:59.9]} 10... O-O {[%clk 0:02:23.6]} 11. Rac1 {[%clk
0:03:00.5]} 11... dxc4 {[%clk 0:02:13.8]} 12. Bxc4 {[%clk 0:02:57.1]} 12... Nb6
{[%clk 0:02:13.9]} 13. Be2 {[%clk 0:02:54.8]} 13... Rd8 {[%clk 0:02:11.4]} 14.
Ne5 {[%clk 0:02:48.9]} 14... Nbd5 {[%clk 0:01:52.6]} 15. Bh2 {[%clk 0:02:47.7]}
15... Nxc3 {[%clk 0:01:50.7]} 16. bxc3 {[%clk 0:02:46.9]} 16... Ne4 {[%clk
0:01:50.3]} 17. Rfd1 {[%clk 0:02:44.6]} 17... Bd6 {[%clk 0:01:41.4]} 18. Bd3
{[%clk 0:02:15.9]} 18... Qc7 {[%clk 0:01:33.9]} 19. Qb1 {[%clk 0:02:12.9]} 19...
Nf6 {[%clk 0:01:06]} 20. Bxf5 {[%clk 0:02:11]} 20... exf5 {[%clk 0:01:06.9]} 21.
Qxf5 {[%clk 0:02:11.1]} 21... Qe7 {[%clk 0:01:06.8]} 22. Bg3 {[%clk 0:01:39.1]}
22... Re8 {[%clk 0:01:06.6]} 23. Bh4 {[%clk 0:01:21.4]} 23... Bxe5 {[%clk
0:00:56.4]} 24. dxe5 {[%clk 0:01:22.3]} 24... Qxe5 {[%clk 0:00:57.3]} 25. Qxe5
{[%clk 0:01:22.7]} 25... Rxe5 {[%clk 0:00:58.2]} 26. Bxf6 {[%clk 0:01:23.3]}
26... gxf6 {[%clk 0:00:59.1]} 27. Rd7 {[%clk 0:01:23.7]} 27... Rb5 {[%clk
0:00:59.6]} 28. Rcd1 {[%clk 0:01:20.3]} 28... Rb2 {[%clk 0:00:52.9]} 29. Rc7
{[%clk 0:01:18.7]} 29... Rxa2 {[%clk 0:00:36]} 30. Rxb7 {[%clk 0:01:19]} 30...
a5 {[%clk 0:00:32.2]} 31. Rdd7 {[%clk 0:01:19]} 31... Rf8 {[%clk 0:00:32.9]} 32.
Rdc7 {[%clk 0:01:16.2]} 32... a4 {[%clk 0:00:32.2]} 33. Rxc6 {[%clk 0:01:15.7]}
33... Kg7 {[%clk 0:00:32.6]} 34. Ra6 {[%clk 0:01:13.4]} 34... Rd8 {[%clk
0:00:30.8]} 35. Rba7 {[%clk 0:01:08.2]} 35... Rd1+ {[%clk 0:00:26.3]} 36. Kh2
{[%clk 0:01:08.5]} 36... Rxf2 {[%clk 0:00:27]} 37. Rxa4 {[%clk 0:01:08.1]} 37...
f5 {[%clk 0:00:23.6]} 38. Rf4 {[%clk 0:00:59.8]} 38... Rc2 {[%clk 0:00:20.4]}
39. Rxf5 {[%clk 0:00:54.2]} 39... Rdd2 {[%clk 0:00:21.1]} 40. Rfxf7+ {[%clk
0:00:53.7]} 40... Kg6 {[%clk 0:00:19.4]} 41. Rg7+ {[%clk 0:00:53]} 41... Kf6
{[%clk 0:00:18.1]} 42. Rac7 {[%clk 0:00:51.5]} 42... Re2 {[%clk 0:00:11.9]} 43.
Rg8 {[%clk 0:00:50.7]} 43... Ke5 {[%clk 0:00:09.1]} 44. Rc6 {[%clk 0:00:49]}
44... Kd5 {[%clk 0:00:08.6]} 45. Rxh6 {[%clk 0:00:48.5]} 45... Rxe3 {[%clk
0:00:08.4]} 46. Rg5+ {[%clk 0:00:41.3]} 46... Kc4 {[%clk 0:00:08.8]} 47. Rc6+
{[%clk 0:00:37.5]} 47... Kd3 {[%clk 0:00:08]} 48. c4 {[%clk 0:00:35.7]} 48...
Re1 {[%clk 0:00:06]} 49. Rd6+ {[%clk 0:00:33.3]} 49... Kc3 {[%clk 0:00:05.8]}
50. c5 {[%clk 0:00:25.7]} 50... Rcc1 {[%clk 0:00:04.8]} 51. c6 {[%clk
0:00:25.6]} 51... Rh1+ {[%clk 0:00:05.1]} 52. Kg3 {[%clk 0:00:26]} 52... Kb4
{[%clk 0:00:06]} 53. Rg7 {[%clk 0:00:22.5]} 53... Rc3+ {[%clk 0:00:06.2]} 54.
Kh4 {[%clk 0:00:22.6]} 54... Rc4+ {[%clk 0:00:06.6]} 55. Rg4 {[%clk 0:00:22.3]}
55... Rc1 {[%clk 0:00:02.3]} 56. Rdd4 {[%clk 0:00:18.9]} 56... Rxd4 {[%clk
0:00:01.4]} 57. Rxd4+ {[%clk 0:00:19.8]} 57... Kc5 {[%clk 0:00:02.3]} 58. Rf4
{[%clk 0:00:17.5]} 58... Kxc6 {[%clk 0:00:02.5]} 59. g4 {[%clk 0:00:18.2]} 59...
Kd5 {[%clk 0:00:03.3]} 60. Rf2 {[%clk 0:00:16.6]} 60... Ke6 {[%clk 0:00:04.2]}
61. g5 {[%clk 0:00:16]} 61... Rc3 {[%clk 0:00:04.4]} 62. Kg4 {[%clk 0:00:16]}
62... Rc4+ {[%clk 0:00:04.7]} 63. Kh5 {[%clk 0:00:16.6]} 63... Rc8 {[%clk
0:00:05.4]} 64. h4 {[%clk 0:00:17]} 64... Rh8+ {[%clk 0:00:06.2]} 65. Kg4 {[%clk
0:00:17.7]} 65... Ra8 {[%clk 0:00:05.3]} 66. g6 {[%clk 0:00:17.6]} 66... Ra5
{[%clk 0:00:03.6]} 67. h5 {[%clk 0:00:17.8]} 67... Ra4+ {[%clk 0:00:04]} 68. Kg5
{[%clk 0:00:18]} 68... Ra5+ {[%clk 0:00:04.9]} 69. Kh6 {[%clk 0:00:18.7]} 69...
Rf5 {[%clk 0:00:04.6]} 70. Rxf5 {[%clk 0:00:18]} 70... Kxf5 {[%clk 0:00:05.5]}
71. g7 {[%clk 0:00:18.9]} 71... Kf6 {[%clk 0:00:04.4]} 72. g8=Q {[%clk
0:00:19.1]} 72... Ke5 {[%clk 0:00:05.3]} 73. Kg7 {[%clk 0:00:19.4]} 73... Kd4
{[%clk 0:00:06.2]} 74. h6 {[%clk 0:00:19.9]} 74... Kc3 {[%clk 0:00:07.1]} 75. h7
{[%clk 0:00:20.8]} 75... Kd2 {[%clk 0:00:07.6]} 76. h8=Q {[%clk 0:00:21.7]}
76... Kc3 {[%clk 0:00:08.5]} 77. Qd5 {[%clk 0:00:22]} 77... Kc2 {[%clk
0:00:09.4]} 78. Qc8+ {[%clk 0:00:22.1]} 78... Kb2 {[%clk 0:00:09.9]} 79. Qdb7+
{[%clk 0:00:23]} 79... Ka2 {[%clk 0:00:10.8]} 80. Qca8# {[%clk 0:00:23.7]} 1-0